[Event "DVM U12w 2024"]
[Site "Bad Homburg"]
[Date "2024.12.27"]
[Round "2"]
[White "Rutschmann, Polly"]
[Black "Albrecht, Sidney Jenna"]
[Result "0-1"]
[ECO "B35"]
[WhiteElo "1072"]
[BlackElo "1483"]
[Annotator "NA RC"]
[PlyCount "46"]
[EventDate "2024.12.23"]
[EventType "team-tourn"]
[EventRounds "7"]
[EventCountry "GER"]
[SourceTitle "playchess.com"]
[Source "ChessBase"]
[SourceQuality "1"]
[TimeControl "40/5400+30:1800+30"]

1. e4 {[%emt 0:00:07]} c5 {[%emt 0:00:06]} 2. Nf3 {[%emt 0:00:16]} Nc6 {[%emt 0:00:08]} 3. d4 {[%emt 0:00:20]} cxd4 {[%emt 0:00:09]} 4. Nxd4 {[%emt 0:00:09]} g6 {[%emt 0:00:11]} 5. Nc3 {[%emt 0:00:16]} Bg7 {[%emt 0:00:13]} 6. Be3 {[%emt 0:00:18]} Nf6 {[%emt 0:00:14]} 7. Bc4 {[%emt 0:00:19]} Qa5 {[%emt 0:01:04]} 8. Bb3 {[%emt 0:01:40]} Nxe4 {[%emt 0:01:48]} 9. Nde2 {[%emt 0:03:31]} Nxc3 {[%emt 0:07:54]} 10. Nxc3 {[%emt 0:00:24]} Bxc3+ {[%emt 0:01:26]} 11. bxc3 {[%emt 0:00:51]} Qxc3+ {[%emt 0:00:13]} 12. Bd2 {[%emt 0:00:36]} Qe5+ {[%emt 0:01:12]} 13. Be3 {[%emt 0:01:11]} Qe4 {[%emt 0:06:28]} 14. O-O {[%emt 0:05:09]} O-O {[%emt 0:03:02]} 15. Bh6 {[%emt 0:02:14]} Rd8 {[%emt 0:01:02]} 16. Re1 {[%emt 0:03:19]} Qh4 {[%emt 0:03:59]} 17. Bd2 {[%emt 0:02:00]} d5 {[%emt 0:04:38]} 18. Bc3 {[%emt 0:02:58]} e6 {[%emt 0:02:25]} 19. Qd3 {[%emt 0:03:43]} b6 {[%emt 0:04:02]} 20. Bb2 {[%emt 0:01:57]} Bb7 {[%emt 0:03:55]} 21. Qc3 {[%emt 0:02:54]} d4 {[%emt 0:03:11]} 22. Qd3 {[%emt 0:01:45]} Qg5 {[%emt 0:01:19]} 23. Qe4 {[%emt 0:02:36]} Na5 {[%emt 0:01:03]} 0-1

[Event "DVM U12w 2024"]
[Site "Bad Homburg"]
[Date "2024.12.27"]
[Round "2"]
[White "Zietz, Leni"]
[Black "Dennhardt, Mira"]
[Result "1-0"]
[ECO "B00"]
[WhiteElo "1071"]
[BlackElo "830"]
[Annotator "NA RC"]
[PlyCount "134"]
[EventDate "2024.12.23"]
[EventType "team-tourn"]
[EventRounds "7"]
[EventCountry "GER"]
[SourceTitle "playchess.com"]
[Source "ChessBase"]
[SourceQuality "1"]
[TimeControl "40/5400+30:1800+30"]

1. d4 {[%emt 0:00:02]} d6 {[%emt 0:00:20]} 2. e4 {[%emt 0:00:12]} Nc6 {[%emt 0:01:19]} 3. Nf3 {[%emt 0:00:18]} Bg4 {[%emt 0:01:10]} 4. Be2 {[%emt 0:00:42]} Nf6 {[%emt 0:00:39]} 5. Nc3 {[%emt 0:00:25]} e5 {[%emt 0:00:40]} 6. O-O {[%emt 0:01:24]} Be7 {[%emt 0:00:22]} 7. Bg5 {[%emt 0:01:15]} O-O {[%emt 0:01:09]} 8. h3 {[%emt 0:01:40]} Bh5 {[%emt 0:01:31]} 9. d5 {[%emt 0:02:54]} Nd4 {[%emt 0:00:59]} 10. Nxd4 {[%emt 0:01:30]} Bxe2 {[%emt 0:00:52]} 11. Ndxe2 {[%emt 0:00:17]} h6 {[%emt 0:00:40]} 12. Bxf6 {[%emt 0:00:54]} Bxf6 {[%emt 0:00:45]} 13. Ng3 {[%emt 0:00:49]} Rb8 {[%emt 0:02:31]} 14. Nf5 {[%emt 0:00:43]} Bg5 {[%emt 0:02:44]} 15. Ne2 {[%emt 0:02:41]} g6 {[%emt 0:00:26]} 16. Nfg3 {[%emt 0:00:45]} Bf4 {[%emt 0:00:29]} 17. c4 {[%emt 0:01:49]} Bxg3 {[%emt 0:00:21]} 18. Nxg3 {[%emt 0:00:14]} Qd7 {[%emt 0:02:52]} 19. Qd2 {[%emt 0:00:53]} Kg7 {[%emt 0:00:53]} 20. b4 {[%emt 0:00:46]} Rbc8 {[%emt 0:02:35]} 21. f4 {[%emt 0:00:52]} c5 {[%emt 0:00:52]} 22. f5 {[%emt 0:01:19]} g5 {[%emt 0:01:36]} 23. Nh5+ {[%emt 0:00:21]} Kh8 {[%emt 0:00:42]} 24. Rab1 {[%emt 0:01:13]} b6 {[%emt 0:03:06]} 25. f6 {[%emt 0:00:53]} a5 {[%emt 0:00:34]} 26. bxa5 {[%emt 0:00:23]} bxa5 {[%emt 0:00:03]} 27. Qf2 {[%emt 0:00:33]} Qa4 {[%emt 0:01:21]} 28. Rb2 {[%emt 0:02:16]} Qxc4 {[%emt 0:00:21]} 29. Qf3 {[%emt 0:01:00]} Qd4+ {[%emt 0:01:20]} 30. Rff2 {[%emt 0:03:24]} c4 {[%emt 0:02:18]} 31. Kf1 {[%emt 0:01:23]} c3 {[%emt 0:00:23]} 32. Rbc2 {[%emt 0:00:24]} Rb8 {[%emt 0:02:57]} 33. Rxc3 {[%emt 0:01:12]} Rb1+ {[%emt 0:00:25]} 34. Ke2 {[%emt 0:00:40]} Qd1+ {[%emt 0:02:53]} 35. Ke3 {[%emt 0:00:41]} Qe1+ {[%emt 0:00:36]} 36. Kd3 {[%emt 0:00:59]} Rd1+ {[%emt 0:03:31]} 37. Kc2 {[%emt 0:00:31]} Rb8 {[%emt 0:02:24]} 38. Qxd1 {[%emt 0:00:25]} Qxf2+ {[%emt 0:00:12]} 39. Kd3 {[%emt 0:02:33]} Qd4+ {[%emt 0:00:32]} 40. Kc2 {[%emt 0:00:31]} Rb2+ {[%emt 0:01:14]} 41. Kxb2 {[%emt 0:31:14]} Qxd1 {[%emt 0:30:21]} 42. Rc8+ {[%emt 0:01:00]} Kh7 {[%emt 0:00:23]} 43. g4 {[%emt 0:01:14]} a4 {[%emt 0:01:08]} 44. Ng7 {[%emt 0:00:45]} Qd4+ {[%emt 0:00:35]} 45. Ka3 {[%emt 0:00:57]} Qxe4 {[%emt 0:00:49]} 46. Nf5 {[%emt 0:00:21]} Qf4 {[%emt 0:00:39]} 47. Nxd6 {[%emt 0:01:12]} Qxf6 {[%emt 0:01:12]} 48. Nf5 {[%emt 0:00:32]} e4 {[%emt 0:01:55]} 49. d6 {[%emt 0:01:48]} Qe6 {[%emt 0:00:27]} 50. Rc3 {[%emt 0:01:47]} Kg6 {[%emt 0:02:03]} 51. Kxa4 {[%emt 0:00:38]} h5 {[%emt 0:00:07]} 52. Rc6 {[%emt 0:00:40]} Qd7 {[%emt 0:01:36]} 53. Kb5 {[%emt 0:00:50]} hxg4 {[%emt 0:03:43]} 54. hxg4 {[%emt 0:00:11]} Kf6 {[%emt 0:01:21]} 55. a4 {[%emt 0:00:51]} Ke6 {[%emt 0:00:54]} 56. a5 {[%emt 0:00:32]} Qd8 {[%emt 0:01:55]} 57. Rc7 {[%emt 0:01:43]} Ke5 {[%emt 0:01:35]} 58. Kb6 {[%emt 0:00:20]} Kf4 {[%emt 0:00:39]} 59. d7 {[%emt 0:00:40]} Kxg4 {[%emt 0:00:22]} 60. Ne3+ {[%emt 0:00:31]} Kf3 {[%emt 0:00:39]} 61. Nc2 {[%emt 0:00:10]} g4 {[%emt 0:00:44]} 62. Kc6 {[%emt 0:00:32]} Qf6+ {[%emt 0:00:38]} 63. Kb7 {[%emt 0:00:25]} Qd8 {[%emt 0:01:01]} 64. Nd4+ {[%emt 0:01:05]} Kf4 {[%emt 0:00:34]} 65. Nc6 {[%emt 0:00:21]} Qg8 {[%emt 0:01:13]} 66. d8=Q {[%emt 0:00:22]} Qxd8 {[%emt 0:00:26]} 67. Nxd8 {[%emt 0:00:20]} g3 {[%emt 0:00:11]} 1-0

[Event "DVM U12w 2024"]
[Site "Bad Homburg"]
[Date "2024.12.27"]
[Round "2"]
[White "Anaparthi, Anika"]
[Black "Doescher, Nayla"]
[Result "1/2-1/2"]
[ECO "C44"]
[WhiteElo "1052"]
[BlackElo "1437"]
[Annotator "NA RC"]
[PlyCount "168"]
[EventDate "2024.12.23"]
[EventType "team-tourn"]
[EventRounds "7"]
[EventCountry "GER"]
[SourceTitle "playchess.com"]
[Source "ChessBase"]
[SourceQuality "1"]
[TimeControl "40/5400+30:1800+30"]

1. e4 {[%emt 0:00:02]} e5 {[%emt 0:00:01]} 2. c3 {[%emt 0:00:17]} Nc6 {[%emt 0:11:02]} 3. Nf3 {[%emt 0:00:13]} Nf6 {[%emt 0:02:58]} 4. d4 {[%emt 0:02:08]} d6 {[%emt 0:04:43]} 5. d5 {[%emt 0:13:15]} Ne7 {[%emt 0:01:25]} 6. Bd3 {[%emt 0:04:40]} Ng6 {[%emt 0:01:59]} 7. O-O {[%emt 0:03:00]} Be7 {[%emt 0:01:14]} 8. Bg5 {[%emt 0:00:49]} O-O {[%emt 0:03:10]} 9. Nbd2 {[%emt 0:04:33]} c6 {[%emt 0:02:36]} 10. c4 {[%emt 0:03:05]} Bd7 {[%emt 0:09:00]} 11. Nh4 {[%emt 0:02:15]} Nxh4 {[%emt 0:06:56]} 12. Bxh4 {[%emt 0:00:13]} h6 {[%emt 0:01:45]} 13. h3 {[%emt 0:01:06]} Nh7 {[%emt 0:04:55]} 14. Bxe7 {[%emt 0:04:26]} Qxe7 {[%emt 0:00:03]} 15. Qh5 {[%emt 0:05:19]} Qf6 {[%emt 0:08:26]} 16. Be2 {[%emt 0:02:28]} Ng5 {[%emt 0:02:52]} 17. Bg4 {[%emt 0:01:46]} Bxg4 {[%emt 0:02:19]} 18. Qxg4 {[%emt 0:00:19]} Rac8 {[%emt 0:07:48]} 19. b3 {[%emt 0:00:58]} Rfd8 {[%emt 0:03:44]} 20. Rad1 {[%emt 0:01:03]} Nh7 {[%emt 0:01:24]} 21. f4 {[%emt 0:00:28]} Nf8 {[%emt 0:03:33]} 22. fxe5 {[%emt 0:00:18]} Qxe5 {[%emt 0:00:24]} 23. Rf2 {[%emt 0:02:09]} Ng6 {[%emt 0:01:59]} 24. Rdf1 {[%emt 0:00:31]} Rf8 {[%emt 0:02:06]} 25. Nf3 {[%emt 0:00:53]} Qf4 {[%emt 0:01:23]} 26. Qd7 {[%emt 0:06:43]} Qxe4 {[%emt 0:01:18]} 27. Qxb7 {[%emt 0:02:44]} cxd5 {[%emt 0:02:33]} 28. cxd5 {[%emt 0:01:57]} Nf4 {[%emt 0:02:18]} 29. Nd2 {[%emt 0:03:23]} Qxd5 {[%emt 0:01:58]} 30. Qxa7 {[%emt 0:00:35]} Ra8 {[%emt 0:00:45]} 31. Qe3 {[%emt 0:01:12]} Ng6 {[%emt 0:02:42]} 32. Nc4 {[%emt 0:00:48]} Qc5 {[%emt 0:01:42]} 33. Qd2 {[%emt 0:02:28]} d5 {[%emt 0:00:50]} 34. Ne3 {[%emt 0:03:58]} f6 {[%emt 0:03:57]} 35. Nxd5 {[%emt 0:01:48]} Rfd8 {[%emt 0:00:50]} 36. Rd1 {[%emt 0:04:26]} Nf4 {[%emt 0:00:48]} 37. Qxf4 {[%emt 0:04:20]} Rxd5 {[%emt 0:00:03]} 38. Rxd5 {[%emt 0:00:40]} Qxd5 {[%emt 0:00:24]} 39. Rd2 {[%emt 0:01:29]} Qg5 {[%emt 0:01:04]} 40. Qc4+ {[%emt 0:01:29]} Kh8 {[%emt 0:00:27]} 41. Rc2 {[%emt 0:30:34]} Rd8 {[%emt 0:31:01]} 42. Qe2 {[%emt 0:03:06]} Qg6 {[%emt 0:00:00]} 43. a4 {[%emt 0:00:00]} Re8 {[%emt 0:00:00]} 44. Qd2 {[%emt 0:00:00]} f5 {[%emt 0:00:00]} 45. Qf2 {[%emt 0:00:00]} Qe6 {[%emt 0:00:00]} 46. Rb2 {[%emt 0:00:00]} Rb8 {[%emt 0:00:00]} 47. Qf3 {[%emt 0:00:00]} Qe1+ {[%emt 0:00:00]} 48. Qf1 {[%emt 0:00:00]} Qe3+ {[%emt 0:00:00]} 49. Qf2 {[%emt 0:00:00]} Qc1+ {[%emt 0:00:00]} 50. Kh2 {[%emt 0:00:00]} Qc3 {[%emt 0:00:00]} 51. Qg3 {[%emt 0:00:00]} Qb4 {[%emt 0:00:00]} 52. Rb1 {[%emt 0:00:00]} Ra8 {[%emt 0:00:00]} 53. Qd3 {[%emt 0:00:00]} Qf4+ {[%emt 0:00:11]} 54. Qg3 {[%emt 0:00:00]} Qe4 {[%emt 0:00:55]} 55. Qf3 {[%emt 0:00:00]} Qe5+ {[%emt 0:02:11]} 56. g3 {[%emt 0:00:00]} Rc8 {[%emt 0:01:06]} 57. Rf1 {[%emt 0:00:00]} Rc2+ {[%emt 0:00:39]} 58. Rf2 {[%emt 0:00:00]} Rc3 {[%emt 0:00:32]} 59. Qf4 {[%emt 0:00:00]} Qxf4 {[%emt 0:01:39]} 60. Rxf4 {[%emt 0:00:00]} Rxb3 {[%emt 0:00:56]} 61. Rxf5 {[%emt 0:00:00]} Rb2+ {[%emt 0:00:29]} 62. Kg1 {[%emt 0:00:00]} Kh7 {[%emt 0:00:27]} 63. Rf2 {[%emt 0:00:00]} Rb3 {[%emt 0:00:19]} 64. Kg2 {[%emt 0:00:00]} Ra3 {[%emt 0:00:13]} 65. Rf4 {[%emt 0:00:00]} Kg6 {[%emt 0:00:36]} 66. h4 {[%emt 0:00:00]} Kh5 {[%emt 0:00:54]} 67. Kh3 {[%emt 0:00:00]} g5 {[%emt 0:01:04]} 68. Rc4 {[%emt 0:00:00]} Kg6 {[%emt 0:00:58]} 69. Kg2 {[%emt 0:00:50]} gxh4 {[%emt 0:00:38]} 70. Rxh4 {[%emt 0:00:29]} Kg5 {[%emt 0:00:27]} 71. Kh3 {[%emt 0:00:17]} h5 {[%emt 0:00:46]} 72. Rc4 {[%emt 0:00:15]} Ra2 {[%emt 0:00:29]} 73. Rb4 {[%emt 0:01:13]} Ra3 {[%emt 0:00:32]} 74. Rb5+ {[%emt 0:00:17]} Kg6 {[%emt 0:00:12]} 75. a5 {[%emt 0:00:05]} Ra4 {[%emt 0:00:30]} 76. Rb6+ {[%emt 0:00:23]} Kg5 {[%emt 0:00:31]} 77. Rb5+ {[%emt 0:00:22]} Kg6 {[%emt 0:00:20]} 78. Rc5 {[%emt 0:00:32]} Ra3 {[%emt 0:00:35]} 79. Kg2 {[%emt 0:01:21]} Ra4 {[%emt 0:00:49]} 80. Kf3 {[%emt 0:01:04]} Ra1 {[%emt 0:00:33]} 81. Rc6+ {[%emt 0:01:56]} Kf5 {[%emt 0:00:26]} 82. a6 {[%emt 0:01:18]} Ra3+ {[%emt 0:00:15]} 83. Kg2 {[%emt 0:00:11]} Kg4 {[%emt 0:00:35]} 84. Rc4+ {[%emt 0:01:16]} Kg5 {[%emt 0:00:22]} 1/2-1/2

[Event "DVM U12w 2024"]
[Site "Bad Homburg"]
[Date "2024.12.27"]
[Round "2"]
[White "Mrugalski, Marie"]
[Black "Frenzel, Qorianka"]
[Result "0-1"]
[ECO "B13"]
[WhiteElo "1052"]
[BlackElo "1568"]
[Annotator "NA RC"]
[PlyCount "66"]
[EventDate "2024.12.23"]
[EventType "team-tourn"]
[EventRounds "7"]
[EventCountry "GER"]
[SourceTitle "playchess.com"]
[Source "ChessBase"]
[SourceQuality "1"]
[TimeControl "40/5400+30:1800+30"]

1. d4 {[%emt 0:00:03]} Nf6 {[%emt 0:00:06]} 2. Bf4 {[%emt 0:00:12]} d5 {[%emt 0:00:05]} 3. e3 {[%emt 0:00:11]} c5 {[%emt 0:00:16]} 4. c3 {[%emt 0:00:15]} e6 {[%emt 0:00:15]} 5. Nf3 {[%emt 0:00:17]} Nc6 {[%emt 0:00:12]} 6. Bd3 {[%emt 0:01:02]} cxd4 {[%emt 0:00:49]} 7. exd4 {[%emt 0:01:09]} Nh5 {[%emt 0:02:32]} 8. Bg3 {[%emt 0:02:37]} Be7 {[%emt 0:02:21]} 9. Nbd2 {[%emt 0:04:16]} a6 {[%emt 0:04:32]} 10. Qc2 {[%emt 0:02:35]} h6 {[%emt 0:02:04]} 11. O-O-O {[%emt 0:03:19]} Qb6 {[%emt 0:01:54]} 12. Ne5 {[%emt 0:05:48]} Nxg3 {[%emt 0:01:12]} 13. hxg3 {[%emt 0:00:17]} Nxe5 {[%emt 0:00:29]} 14. dxe5 {[%emt 0:00:12]} Qxf2 {[%emt 0:00:35]} 15. Rhg1 {[%emt 0:02:02]} Qxg3 {[%emt 0:01:24]} 16. Rde1 {[%emt 0:01:15]} Qf2 {[%emt 0:00:44]} 17. Qa4+ {[%emt 0:04:38]} Bd7 {[%emt 0:00:44]} 18. Qb3 {[%emt 0:04:20]} Bc6 {[%emt 0:01:18]} 19. Ref1 {[%emt 0:07:53]} Qg3 {[%emt 0:02:01]} 20. Be2 {[%emt 0:05:20]} Qxe5 {[%emt 0:01:00]} 21. Re1 {[%emt 0:05:51]} Qc7 {[%emt 0:01:15]} 22. Rgf1 {[%emt 0:01:25]} Qd7 {[%emt 0:04:34]} 23. Qc2 {[%emt 0:05:40]} Rc8 {[%emt 0:02:23]} 24. Rf2 {[%emt 0:03:04]} Bh4 {[%emt 0:01:05]} 25. Ref1 {[%emt 0:01:49]} Bxf2 {[%emt 0:00:09]} 26. Rxf2 {[%emt 0:00:11]} Rc7 {[%emt 0:04:49]} 27. Qd3 {[%emt 0:00:45]} Bb5 {[%emt 0:01:10]} 28. Qg3 {[%emt 0:00:28]} Rg8 {[%emt 0:00:46]} 29. Bxb5 {[%emt 0:01:29]} axb5 {[%emt 0:00:25]} 30. Qf3 {[%emt 0:02:53]} b4 {[%emt 0:01:03]} 31. Qe3 {[%emt 0:02:56]} bxc3 {[%emt 0:02:16]} 32. bxc3 {[%emt 0:00:09]} d4 {[%emt 0:00:22]} 33. Qf3 {[%emt 0:00:30]} Rxc3+ {[%emt 0:00:11]} 0-1

[Event "DVM U12w 2024"]
[Site "Bad Homburg"]
[Date "2024.12.27"]
[Round "2"]
[White "Bacakova, Johanna"]
[Black "Subocz, Emma"]
[Result "0-1"]
[ECO "B21"]
[WhiteElo "1045"]
[BlackElo "1106"]
[Annotator "NA RC"]
[PlyCount "82"]
[EventDate "2024.12.23"]
[EventType "team-tourn"]
[EventRounds "7"]
[EventCountry "GER"]
[SourceTitle "playchess.com"]
[Source "ChessBase"]
[SourceQuality "1"]
[TimeControl "40/5400+30:1800+30"]

1. e4 {[%emt 0:00:03]} c5 {[%emt 0:00:04]} 2. d4 {[%emt 0:00:10]} cxd4 {[%emt 0:00:06]} 3. c3 {[%emt 0:00:20]} dxc3 {[%emt 0:00:05]} 4. Nxc3 {[%emt 0:00:19]} d6 {[%emt 0:00:11]} 5. Nf3 {[%emt 0:00:28]} Nc6 {[%emt 0:00:10]} 6. Bc4 {[%emt 0:01:01]} e6 {[%emt 0:00:30]} 7. O-O {[%emt 0:02:47]} Nf6 {[%emt 0:00:16]} 8. Qe2 {[%emt 0:01:36]} Be7 {[%emt 0:01:45]} 9. Rd1 {[%emt 0:01:36]} Qc7 {[%emt 0:00:37]} 10. Bg5 {[%emt 0:02:20]} O-O {[%emt 0:00:26]} 11. Rac1 {[%emt 0:01:36]} a6 {[%emt 0:00:24]} 12. h3 {[%emt 0:04:25]} b5 {[%emt 0:00:47]} 13. Bb3 {[%emt 0:04:12]} Bb7 {[%emt 0:00:56]} 14. a3 {[%emt 0:02:42]} Rfd8 {[%emt 0:02:10]} 15. Bc2 {[%emt 0:06:23]} Rac8 {[%emt 0:01:32]} 16. Nb1 {[%emt 0:01:26]} d5 {[%emt 0:03:20]} 17. exd5 {[%emt 0:01:34]} Nxd5 {[%emt 0:01:14]} 18. Bxe7 {[%emt 0:01:26]} Qxe7 {[%emt 0:00:50]} 19. Qe4 {[%emt 0:03:38]} Nf6 {[%emt 0:00:29]} 20. Qf4 {[%emt 0:03:43]} Rxd1+ {[%emt 0:06:19]} 21. Rxd1 {[%emt 0:01:08]} Qc5 {[%emt 0:04:10]} 22. Be4 {[%emt 0:04:04]} Nxe4 {[%emt 0:01:10]} 23. Qxe4 {[%emt 0:02:40]} Qc4 {[%emt 0:04:14]} 24. Qxc4 {[%emt 0:03:47]} bxc4 {[%emt 0:00:18]} 25. Rc1 {[%emt 0:03:44]} Ne7 {[%emt 0:01:02]} 26. Nbd2 {[%emt 0:01:31]} Bd5 {[%emt 0:00:40]} 27. Ne5 {[%emt 0:01:12]} Nc6 {[%emt 0:02:40]} 28. Nexc4 {[%emt 0:03:14]} Nd4 {[%emt 0:00:37]} 29. Kf1 {[%emt 0:01:45]} f5 {[%emt 0:01:21]} 30. Ke1 {[%emt 0:02:38]} Bxg2 {[%emt 0:01:04]} 31. h4 {[%emt 0:02:35]} h5 {[%emt 0:02:32]} 32. Kd1 {[%emt 0:02:31]} g5 {[%emt 0:01:27]} 33. Ne5 {[%emt 0:03:01]} Rxc1+ {[%emt 0:00:31]} 34. Kxc1 {[%emt 0:03:03]} gxh4 {[%emt 0:00:11]} 35. Ng6 {[%emt 0:02:47]} h3 {[%emt 0:00:25]} 36. Nf4 {[%emt 0:00:36]} h2 {[%emt 0:00:18]} 37. Nc4 {[%emt 0:02:12]} h1=Q+ {[%emt 0:00:23]} 38. Kd2 {[%emt 0:01:21]} Nf3+ {[%emt 0:00:22]} 39. Kc3 {[%emt 0:01:31]} Qe1+ {[%emt 0:00:17]} 40. Kb3 {[%emt 0:00:46]} Nd4+ {[%emt 0:00:23]} 41. Ka4 {[%emt 0:30:46]} Bc6# {[%emt 0:30:18]} 0-1

[Event "DVM U12w 2024"]
[Site "Bad Homburg"]
[Date "2024.12.27"]
[Round "2"]
[White "Haas, Valentina"]
[Black "Raghavan, Madhushri"]
[Result "0-1"]
[ECO "C28"]
[WhiteElo "974"]
[BlackElo "1410"]
[Annotator "NA RC"]
[PlyCount "130"]
[EventDate "2024.12.23"]
[EventType "team-tourn"]
[EventRounds "7"]
[EventCountry "GER"]
[SourceTitle "playchess.com"]
[Source "ChessBase"]
[SourceQuality "1"]
[TimeControl "40/5400+30:1800+30"]

1. e4 {[%emt 0:00:02]} e5 {[%emt 0:00:10]} 2. Nc3 {[%emt 0:00:13]} Nc6 {[%emt 0:01:16]} 3. Bc4 {[%emt 0:00:44]} Nf6 {[%emt 0:00:28]} 4. d3 {[%emt 0:00:19]} h6 {[%emt 0:00:47]} 5. f4 {[%emt 0:00:28]} exf4 {[%emt 0:03:53]} 6. Bxf4 {[%emt 0:00:36]} d6 {[%emt 0:02:08]} 7. Nf3 {[%emt 0:00:27]} Bg4 {[%emt 0:00:59]} 8. h3 {[%emt 0:00:29]} Bh5 {[%emt 0:00:49]} 9. Qe2 {[%emt 0:00:18]} Nd4 {[%emt 0:01:40]} 10. Qf2 {[%emt 0:00:28]} Nxf3+ {[%emt 0:02:33]} 11. gxf3 {[%emt 0:00:13]} d5 {[%emt 0:00:48]} 12. Nxd5 {[%emt 0:00:34]} Nxd5 {[%emt 0:01:50]} 13. Bxd5 {[%emt 0:00:16]} c6 {[%emt 0:00:31]} 14. Bc4 {[%emt 0:00:34]} a5 {[%emt 0:01:02]} 15. a3 {[%emt 0:00:14]} Qf6 {[%emt 0:01:10]} 16. Bc1 {[%emt 0:01:27]} Qxf3 {[%emt 0:01:29]} 17. Qxf3 {[%emt 0:01:21]} Bxf3 {[%emt 0:00:46]} 18. Bxf7+ {[%emt 0:00:47]} Ke7 {[%emt 0:02:29]} 19. Rh2 {[%emt 0:00:25]} Bxe4 {[%emt 0:01:24]} 20. dxe4 {[%emt 0:00:45]} Kxf7 {[%emt 0:00:58]} 21. Bd2 {[%emt 0:01:17]} b6 {[%emt 0:05:06]} 22. e5 {[%emt 0:00:58]} Re8 {[%emt 0:02:30]} 23. Re2 {[%emt 0:01:06]} g5 {[%emt 0:01:26]} 24. e6+ {[%emt 0:00:23]} Rxe6 {[%emt 0:01:25]} 25. Rxe6 {[%emt 0:00:25]} Kxe6 {[%emt 0:00:40]} 26. Bc3 {[%emt 0:00:15]} Rh7 {[%emt 0:01:10]} 27. Rd1 {[%emt 0:00:46]} Rd7 {[%emt 0:01:17]} 28. Rxd7 {[%emt 0:00:31]} Kxd7 {[%emt 0:00:21]} 29. Bd4 {[%emt 0:00:33]} b5 {[%emt 0:01:19]} 30. Kf2 {[%emt 0:01:02]} Ke6 {[%emt 0:02:03]} 31. Kg3 {[%emt 0:00:31]} c5 {[%emt 0:01:27]} 32. Bc3 {[%emt 0:01:09]} b4 {[%emt 0:01:13]} 33. Bd2 {[%emt 0:00:46]} a4 {[%emt 0:01:25]} 34. c4 {[%emt 0:00:53]} bxc3 {[%emt 0:00:49]} 35. Bxc3 {[%emt 0:00:19]} Kf5 {[%emt 0:02:49]} 36. Kf3 {[%emt 0:00:18]} Bd6 {[%emt 0:02:33]} 37. Bg7 {[%emt 0:00:27]} Be5 {[%emt 0:00:52]} 38. Bxe5 {[%emt 0:00:09]} Kxe5 {[%emt 0:00:09]} 39. Kg4 {[%emt 0:00:06]} Kf6 {[%emt 0:00:44]} 40. Kh5 {[%emt 0:00:30]} Kg7 {[%emt 0:00:17]} 41. Kg4 {[%emt 0:30:12]} Kg6 {[%emt 0:30:28]} 42. Kg3 {[%emt 0:00:24]} Kf5 {[%emt 0:00:46]} 43. Kf3 {[%emt 0:00:11]} h5 {[%emt 0:00:42]} 44. Kg3 {[%emt 0:00:51]} g4 {[%emt 0:01:14]} 45. hxg4+ {[%emt 0:00:10]} hxg4 {[%emt 0:00:15]} 46. Kg2 {[%emt 0:00:21]} Ke4 {[%emt 0:00:31]} 47. Kg3 {[%emt 0:00:12]} Kd3 {[%emt 0:00:09]} 48. Kxg4 {[%emt 0:00:08]} Kc2 {[%emt 0:00:08]} 49. Kf3 {[%emt 0:00:08]} Kxb2 {[%emt 0:00:14]} 50. Ke2 {[%emt 0:00:03]} c4 {[%emt 0:00:20]} 51. Kd2 {[%emt 0:00:14]} c3+ {[%emt 0:00:04]} 52. Ke3 {[%emt 0:00:10]} c2 {[%emt 0:00:17]} 53. Ke4 {[%emt 0:00:08]} c1=Q {[%emt 0:00:28]} 54. Ke5 {[%emt 0:00:06]} Kxa3 {[%emt 0:00:14]} 55. Kd4 {[%emt 0:00:15]} Kb3 {[%emt 0:00:26]} 56. Ke4 {[%emt 0:00:12]} a3 {[%emt 0:00:08]} 57. Kd4 {[%emt 0:00:04]} a2 {[%emt 0:00:08]} 58. Ke4 {[%emt 0:00:11]} a1=R {[%emt 0:00:14]} 59. Kd4 {[%emt 0:00:05]} Qd2+ {[%emt 0:00:31]} 60. Ke4 {[%emt 0:00:09]} Re1+ {[%emt 0:00:17]} 61. Kf3 {[%emt 0:00:30]} Qd8 {[%emt 0:01:16]} 62. Kf2 {[%emt 0:00:44]} Re7 {[%emt 0:00:12]} 63. Kf3 {[%emt 0:00:12]} Qf8+ {[%emt 0:00:09]} 64. Kg4 {[%emt 0:00:08]} Rg7+ {[%emt 0:00:09]} 65. Kh5 {[%emt 0:00:06]} Qh8# {[%emt 0:00:07]} 0-1